[Event "December 12 Early 2023"]
[Site "https://www.chess.com"]
[Date "2023.12.12"]
[Round "1"]
[White "Shubenkova, Veronika"]
[Black "Barbot, Pierre"]
[Result "0-1"]
[Board "173"]
[TimeControl "180+1"]
[WhiteFideId "44124040"]
[BlackFideId "663727"]
[WhiteElo "2601"]
[BlackElo "2302"]
[WhiteTeam "RUS"]
[BlackTeam "FRA"]
[WhiteClock "0:00:00"]
[BlackClock "0:00:05"]

1. e4 {[%clk 0:02:55]}  c6 {[%clk 0:02:59]} 2. d4 {[%clk 0:02:55]}  d5 {[%clk 0:02:59]} 3. Nc3 {[%clk 0:02:55]}  dxe4 {[%clk 0:02:58]} 4. Nxe4 {[%clk 0:02:56]}  Nf6 {[%clk 0:02:58]} 5. Nxf6+ {[%clk 0:02:56]}  exf6 {[%clk 0:02:59]} 6. c3 {[%clk 0:02:57]}  Bd6 {[%clk 0:02:57]} 7. Bd3 {[%clk 0:02:57]}  O-O {[%clk 0:02:57]} 8. Qc2 {[%clk 0:02:57]}  Re8+ {[%clk 0:02:57]} 9. Ne2 {[%clk 0:02:58]}  h6 {[%clk 0:02:55]} 10. Bd2 {[%clk 0:02:57]}  Nd7 {[%clk 0:02:32]} 11. O-O-O {[%clk 0:02:56]}  b5 {[%clk 0:02:31]} 12. Kb1 {[%clk 0:02:54]}  Qa5 {[%clk 0:02:16]} 13. c4 {[%clk 0:02:50]}  Bb4 {[%clk 0:02:15]} 14. Bxb4 {[%clk 0:02:14]}  Qxb4 {[%clk 0:02:16]} 15. c5 {[%clk 0:02:13]}  Nf8 {[%clk 0:02:05]} 16. Nf4 {[%clk 0:02:03]}  Be6 {[%clk 0:01:44]} 17. Be4 {[%clk 0:01:49]}  Rac8 {[%clk 0:01:37]} 18. a3 {[%clk 0:01:03]}  Qa5 {[%clk 0:01:07]} 19. Nxe6 {[%clk 0:00:59]}  Nxe6 {[%clk 0:01:08]} 20. Bf5 {[%clk 0:00:59]}  b4 {[%clk 0:01:03]} 21. Rd3 {[%clk 0:00:54]}  Rb8 {[%clk 0:01:01]} 22. Ka1 {[%clk 0:00:49]}  bxa3 {[%clk 0:00:39]} 23. Rxa3 {[%clk 0:00:49]}  Qb4 {[%clk 0:00:39]} 24. Bxe6 {[%clk 0:00:47]}  Rxe6 {[%clk 0:00:39]} 25. Rd1 {[%clk 0:00:47]}  Re4 {[%clk 0:00:25]} 26. Ra4 {[%clk 0:00:42]}  Qb5 {[%clk 0:00:24]} 27. Ra2 {[%clk 0:00:26]}  Re2 {[%clk 0:00:24]} 28. Qc3 {[%clk 0:00:24]}  Rxf2 {[%clk 0:00:20]} 29. d5 {[%clk 0:00:21]}  cxd5 {[%clk 0:00:20]} 30. c6 {[%clk 0:00:14]}  Rc8 {[%clk 0:00:19]} 31. c7 {[%clk 0:00:13]}  Qb6 {[%clk 0:00:18]} 32. Rc1 {[%clk 0:00:11]}  Re2 {[%clk 0:00:14]} 33. Qd3 {[%clk 0:00:10]}  Re7 {[%clk 0:00:13]} 34. Qxd5 {[%clk 0:00:09]}  Rexc7 {[%clk 0:00:13]} 35. Rxc7 {[%clk 0:00:09]}  Qxc7 {[%clk 0:00:14]} 36. Ra3 {[%clk 0:00:09]}  Qc1+ {[%clk 0:00:11]} 37. Ka2 {[%clk 0:00:09]}  Qc7 {[%clk 0:00:11]} 38. Qd4 {[%clk 0:00:08]}  a5 {[%clk 0:00:10]} 39. g3 {[%clk 0:00:07]}  h5 {[%clk 0:00:09]} 40. h3 {[%clk 0:00:07]}  Rd8 {[%clk 0:00:05]} 41. Qh4 {[%clk 0:00:03]}  Qe5 {[%clk 0:00:05]} 42. Qa4 {[%clk 0:00:02]}  Qe6+ {[%clk 0:00:05]} 43. Qb3 {[%clk 0:00:02]}  Rd5 {[%clk 0:00:03]} 44. Ra4 {[%clk 0:00:02]}  g6 {[%clk 0:00:03]} 45. Rc4 {[%clk 0:00:02]}  Kg7 {[%clk 0:00:03]} 46. Rc3 {[%clk 0:00:02]}  Qe5 {[%clk 0:00:03]} 47. Rc4 {[%clk 0:00:03]}  Rb5 {[%clk 0:00:03]} 48. Qc3 {[%clk 0:00:02]}  Qxc3 {[%clk 0:00:02]} 49. Rxc3 {[%clk 0:00:03]}  Kh6 {[%clk 0:00:03]} 50. Ka3 {[%clk 0:00:04]}  Kg5 {[%clk 0:00:03]} 51. Ka4 {[%clk 0:00:05]}  Rxb2 {[%clk 0:00:03]} 52. Kxa5 {[%clk 0:00:05]}  Rh2 {[%clk 0:00:03]} 53. Rc5+ {[%clk 0:00:04]}  Kh6 {[%clk 0:00:03]} 54. h4 {[%clk 0:00:04]}  Rg2 {[%clk 0:00:04]} 55. Rc3 {[%clk 0:00:04]}  g5 {[%clk 0:00:04]} 56. hxg5+ {[%clk 0:00:04]}  fxg5 {[%clk 0:00:05]} 57. Kb5 {[%clk 0:00:05]}  f6 {[%clk 0:00:05]} 58. Kc5 {[%clk 0:00:05]}  h4 {[%clk 0:00:05]} 59. gxh4 {[%clk 0:00:06]}  gxh4 {[%clk 0:00:06]} 60. Kd5 {[%clk 0:00:06]}  Kg5 {[%clk 0:00:06]} 61. Ke4 {[%clk 0:00:06]}  Rg3 {[%clk 0:00:07]} 62. Rc5+ {[%clk 0:00:05]}  Kg4 {[%clk 0:00:06]} 63. Rc6 {[%clk 0:00:05]}  h3 {[%clk 0:00:06]} 64. Rxf6 {[%clk 0:00:05]}  h2 {[%clk 0:00:06]} 65. Rg6+ {[%clk 0:00:04]}  Kh3 {[%clk 0:00:06]} 66. Rh6+ {[%clk 0:00:04]}  Kg2 {[%clk 0:00:07]} 67. Kf4 {[%clk 0:00:00]}  Rg8 {[%clk 0:00:05]} 0-1

[Event "December 12 Early 2023"]
[Site "https://www.chess.com"]
[Date "2023.12.12"]
[Round "1"]
[White "Marcziter, Dmitrii"]
[Black "Manukian, Artak"]
[Result "1-0"]
[Board "174"]
[TimeControl "180+1"]
[WhiteFideId "13900765"]
[BlackFideId "13301373"]
[WhiteElo "2301"]
[BlackElo "2601"]
[WhiteTeam "GER"]
[BlackTeam "ARM"]
[WhiteClock "0:00:04"]
[BlackClock "0:00:00"]

1. d4 {[%clk 0:02:59]}  d5 {[%clk 0:02:59]} 2. c4 {[%clk 0:02:57]}  dxc4 {[%clk 0:02:59]} 3. e4 {[%clk 0:02:56]}  e5 {[%clk 0:02:59]} 4. Nf3 {[%clk 0:02:55]}  exd4 {[%clk 0:02:59]} 5. Bxc4 {[%clk 0:02:55]}  Bb4+ {[%clk 0:02:58]} 6. Nbd2 {[%clk 0:02:53]}  Nc6 {[%clk 0:02:52]} 7. Qb3 {[%clk 0:02:47]}  Qe7 {[%clk 0:02:46]} 8. a3 {[%clk 0:02:37]}  Bxd2+ {[%clk 0:02:44]} 9. Nxd2 {[%clk 0:02:36]}  Nf6 {[%clk 0:02:40]} 10. O-O {[%clk 0:02:34]}  O-O {[%clk 0:02:39]} 11. Qg3 {[%clk 0:02:20]}  Nxe4 {[%clk 0:02:25]} 12. Nxe4 {[%clk 0:02:18]}  Qxe4 {[%clk 0:02:26]} 13. Qxc7 {[%clk 0:02:15]}  Qe5 {[%clk 0:02:21]} 14. Bf4 {[%clk 0:02:07]}  Qxc7 {[%clk 0:02:16]} 15. Bxc7 {[%clk 0:02:06]}  Be6 {[%clk 0:02:17]} 16. Bb5 {[%clk 0:02:04]}  Rac8 {[%clk 0:02:13]} 17. Bg3 {[%clk 0:01:57]}  Rfd8 {[%clk 0:02:10]} 18. Rfd1 {[%clk 0:01:52]}  f6 {[%clk 0:02:00]} 19. Rd2 {[%clk 0:01:51]}  Ne5 {[%clk 0:01:57]} 20. Rad1 {[%clk 0:01:44]}  Bc4 {[%clk 0:01:45]} 21. Bxc4+ {[%clk 0:01:24]}  Rxc4 {[%clk 0:01:41]} 22. b3 {[%clk 0:01:23]}  Rc3 {[%clk 0:01:41]} 23. f4 {[%clk 0:01:13]}  Ng4 {[%clk 0:01:40]} 24. h3 {[%clk 0:01:12]}  Rxg3 {[%clk 0:01:24]} 25. hxg4 {[%clk 0:01:11]}  Rxb3 {[%clk 0:01:19]} 26. Rxd4 {[%clk 0:01:10]}  Rxd4 {[%clk 0:01:17]} 27. Rxd4 {[%clk 0:01:10]}  b5 {[%clk 0:01:06]} 28. Rd8+ {[%clk 0:01:07]}  Kf7 {[%clk 0:01:01]} 29. Rd7+ {[%clk 0:01:08]}  Ke6 {[%clk 0:00:59]} 30. Rxa7 {[%clk 0:01:05]}  g6 {[%clk 0:00:55]} 31. Kf2 {[%clk 0:00:57]}  h6 {[%clk 0:00:53]} 32. Ra6+ {[%clk 0:00:55]}  Ke7 {[%clk 0:00:52]} 33. f5 {[%clk 0:00:53]}  g5 {[%clk 0:00:45]} 34. Re6+ {[%clk 0:00:47]}  Kf7 {[%clk 0:00:44]} 35. Re3 {[%clk 0:00:45]}  Rb1 {[%clk 0:00:35]} 36. Kf3 {[%clk 0:00:41]}  Kf8 {[%clk 0:00:21]} 37. Ke4 {[%clk 0:00:41]}  Rg1 {[%clk 0:00:18]} 38. g3 {[%clk 0:00:39]}  Ke7 {[%clk 0:00:13]} 39. Kd5+ {[%clk 0:00:37]}  Kd7 {[%clk 0:00:12]} 40. Kc5 {[%clk 0:00:37]}  Rb1 {[%clk 0:00:11]} 41. Re6 {[%clk 0:00:31]}  Rb3 {[%clk 0:00:11]} 42. Rxf6 {[%clk 0:00:30]}  Rxa3 {[%clk 0:00:11]} 43. Rxh6 {[%clk 0:00:25]}  Rxg3 {[%clk 0:00:11]} 44. Rh7+ {[%clk 0:00:23]}  Ke8 {[%clk 0:00:11]} 45. Kxb5 {[%clk 0:00:18]}  Rxg4 {[%clk 0:00:11]} 46. Kc6 {[%clk 0:00:18]}  Rf4 {[%clk 0:00:11]} 47. Kd6 {[%clk 0:00:15]}  Kf8 {[%clk 0:00:06]} 48. Ke6 {[%clk 0:00:15]}  g4 {[%clk 0:00:06]} 49. f6 {[%clk 0:00:14]}  Kg8 {[%clk 0:00:06]} 50. Rg7+ {[%clk 0:00:08]}  Kf8 {[%clk 0:00:05]} 51. Ra7 {[%clk 0:00:07]}  Re4+ {[%clk 0:00:02]} 52. Kf5 {[%clk 0:00:05]}  Rb4 {[%clk 0:00:02]} 53. Kg6 {[%clk 0:00:05]}  Ke8 {[%clk 0:00:00]} 54. Ra8+ {[%clk 0:00:04]} 1-0

[Event "December 12 Early 2023"]
[Site "https://www.chess.com"]
[Date "2023.12.12"]
[Round "1"]
[White "Antonio, Jorge Carlos"]
[Black "Aswath, S"]
[Result "0-1"]
[Board "176"]
[TimeControl "180+1"]
[WhiteFideId "113190"]
[BlackFideId "46694919"]
[WhiteElo "2299"]
[BlackElo "2600"]
[WhiteTeam "ARG"]
[BlackTeam "IND"]
[WhiteClock "0:00:56"]
[BlackClock "0:00:09"]

1. d4 {[%clk 0:03:00]}  d5 {[%clk 0:02:54]} 2. Nf3 {[%clk 0:03:01]}  Nf6 {[%clk 0:02:48]} 3. Bf4 {[%clk 0:03:02]}  c5 {[%clk 0:02:45]} 4. e3 {[%clk 0:03:02]}  Nc6 {[%clk 0:02:44]} 5. c3 {[%clk 0:02:58]}  g6 {[%clk 0:02:40]} 6. Bd3 {[%clk 0:02:57]}  Bg7 {[%clk 0:02:32]} 7. h4 {[%clk 0:02:56]}  Bg4 {[%clk 0:02:29]} 8. Nbd2 {[%clk 0:02:52]}  O-O {[%clk 0:02:27]} 9. Be2 {[%clk 0:02:49]}  Qb6 {[%clk 0:02:25]} 10. Qb3 {[%clk 0:02:46]}  Rfd8 {[%clk 0:02:18]} 11. dxc5 {[%clk 0:02:42]}  Qxc5 {[%clk 0:02:17]} 12. Qxb7 {[%clk 0:02:39]}  Ne4 {[%clk 0:02:03]} 13. Nd4 {[%clk 0:02:35]}  Na5 {[%clk 0:01:09]} 14. Nxe4 {[%clk 0:02:21]}  dxe4 {[%clk 0:01:02]} 15. Qc7 {[%clk 0:02:16]}  Qh5 {[%clk 0:00:45]} 16. Bxg4 {[%clk 0:02:13]}  Qxg4 {[%clk 0:00:46]} 17. Qxa5 {[%clk 0:02:07]}  Qxg2 {[%clk 0:00:41]} 18. O-O-O {[%clk 0:02:05]}  Rac8 {[%clk 0:00:33]} 19. Kb1 {[%clk 0:02:04]}  Qxf2 {[%clk 0:00:30]} 20. h5 {[%clk 0:02:04]}  Bxd4 {[%clk 0:00:15]} 21. Rxd4 {[%clk 0:01:57]}  Rxd4 {[%clk 0:00:13]} 22. exd4 {[%clk 0:01:52]}  Qxf4 {[%clk 0:00:13]} 23. hxg6 {[%clk 0:01:51]}  hxg6 {[%clk 0:00:13]} 24. Qe5 {[%clk 0:01:48]}  Qxe5 {[%clk 0:00:13]} 25. dxe5 {[%clk 0:01:48]}  Rc5 {[%clk 0:00:14]} 26. Kc2 {[%clk 0:01:43]}  Rxe5 {[%clk 0:00:14]} 27. c4 {[%clk 0:01:43]}  f5 {[%clk 0:00:14]} 28. b4 {[%clk 0:01:42]}  f4 {[%clk 0:00:14]} 29. c5 {[%clk 0:01:41]}  f3 {[%clk 0:00:14]} 30. Kc3 {[%clk 0:01:33]}  e3 {[%clk 0:00:11]} 31. c6 {[%clk 0:01:27]}  Rf5 {[%clk 0:00:08]} 32. Kd3 {[%clk 0:01:23]}  e2 {[%clk 0:00:08]} 33. Ke3 {[%clk 0:01:20]}  Rf8 {[%clk 0:00:08]} 34. b5 {[%clk 0:01:20]}  g5 {[%clk 0:00:07]} 35. Kf2 {[%clk 0:01:16]}  g4 {[%clk 0:00:07]} 36. Rg1 {[%clk 0:01:16]}  Kf7 {[%clk 0:00:05]} 37. Rxg4 {[%clk 0:01:16]}  Ke6 {[%clk 0:00:06]} 38. Rc4 {[%clk 0:01:13]}  Kd6 {[%clk 0:00:06]} 39. c7 {[%clk 0:01:13]}  Kd7 {[%clk 0:00:06]} 40. c8=Q+ {[%clk 0:01:13]}  Rxc8 {[%clk 0:00:07]} 41. Rd4+ {[%clk 0:01:09]}  Ke8 {[%clk 0:00:07]} 42. Re4 {[%clk 0:01:09]}  Rc1 {[%clk 0:00:07]} 43. a4 {[%clk 0:01:04]}  Rf1+ {[%clk 0:00:06]} 44. Kg3 {[%clk 0:01:01]}  Rg1+ {[%clk 0:00:06]} 45. Kf2 {[%clk 0:00:58]}  Rf1+ {[%clk 0:00:06]} 46. Kg3 {[%clk 0:00:58]}  e1=Q+ {[%clk 0:00:07]} 47. Rxe1 {[%clk 0:00:56]}  Rxe1 {[%clk 0:00:08]} 48. Kxf3 {[%clk 0:00:57]}  Ra1 {[%clk 0:00:08]} 49. Ke4 {[%clk 0:00:57]}  Rxa4+ {[%clk 0:00:09]} 50. Kd5 {[%clk 0:00:58]}  Rb4 {[%clk 0:00:09]} 51. Kc6 {[%clk 0:00:58]}  e5 {[%clk 0:00:09]} 52. Kc5 {[%clk 0:00:56]}  Rb1 {[%clk 0:00:09]} 0-1

[Event "December 12 Early 2023"]
[Site "https://www.chess.com"]
[Date "2023.12.12"]
[Round "1"]
[White "Principe, Gerson"]
[Black "Fernandez Siles, Luis"]
[Result "1-0"]
[Board "177"]
[TimeControl "180+1"]
[WhiteFideId "3804550"]
[BlackFideId "2209420"]
[WhiteElo "2596"]
[BlackElo "2294"]
[WhiteTeam "PER"]
[BlackTeam "ESP"]
[WhiteClock "0:00:19"]
[BlackClock "0:00:14"]

1. d4 {[%clk 0:02:59]}  Nf6 {[%clk 0:02:59]} 2. Nf3 {[%clk 0:02:59]}  d6 {[%clk 0:02:58]} 3. b3 {[%clk 0:02:58]}  Nbd7 {[%clk 0:02:54]} 4. Bb2 {[%clk 0:02:58]}  c6 {[%clk 0:02:52]} 5. e3 {[%clk 0:02:59]}  Qc7 {[%clk 0:02:52]} 6. Be2 {[%clk 0:03:00]}  e5 {[%clk 0:02:52]} 7. O-O {[%clk 0:03:01]}  Be7 {[%clk 0:02:53]} 8. c4 {[%clk 0:03:01]}  O-O {[%clk 0:02:52]} 9. Nc3 {[%clk 0:03:02]}  Re8 {[%clk 0:02:46]} 10. Rc1 {[%clk 0:03:02]}  Bf8 {[%clk 0:02:44]} 11. Qc2 {[%clk 0:03:02]}  exd4 {[%clk 0:02:18]} 12. Nxd4 {[%clk 0:03:02]}  Qa5 {[%clk 0:02:11]} 13. a3 {[%clk 0:03:02]}  Qg5 {[%clk 0:02:09]} 14. Nf3 {[%clk 0:03:01]}  Qg6 {[%clk 0:02:09]} 15. Bd3 {[%clk 0:03:02]}  Qh6 {[%clk 0:02:08]} 16. Ne2 {[%clk 0:02:59]}  Ne5 {[%clk 0:02:08]} 17. Nxe5 {[%clk 0:02:46]}  dxe5 {[%clk 0:02:09]} 18. Bf5 {[%clk 0:02:36]}  g6 {[%clk 0:01:35]} 19. Bxc8 {[%clk 0:02:33]}  Raxc8 {[%clk 0:01:36]} 20. h3 {[%clk 0:02:34]}  Qh4 {[%clk 0:01:29]} 21. Rcd1 {[%clk 0:02:18]}  Rcd8 {[%clk 0:01:29]} 22. Rxd8 {[%clk 0:02:14]}  Rxd8 {[%clk 0:01:30]} 23. Bxe5 {[%clk 0:02:12]}  Bg7 {[%clk 0:01:18]} 24. Rd1 {[%clk 0:02:07]}  Ne8 {[%clk 0:01:16]} 25. Bxg7 {[%clk 0:01:58]}  Nxg7 {[%clk 0:01:17]} 26. Rd4 {[%clk 0:01:50]}  Rxd4 {[%clk 0:01:15]} 27. exd4 {[%clk 0:01:50]}  Qe7 {[%clk 0:01:09]} 28. Qd3 {[%clk 0:01:49]}  Qxa3 {[%clk 0:01:08]} 29. d5 {[%clk 0:01:47]}  cxd5 {[%clk 0:01:04]} 30. cxd5 {[%clk 0:01:48]}  Qd6 {[%clk 0:01:04]} 31. Nc3 {[%clk 0:01:47]}  Nf5 {[%clk 0:01:00]} 32. Ne4 {[%clk 0:01:45]}  Qf4 {[%clk 0:00:53]} 33. d6 {[%clk 0:01:33]}  Qc1+ {[%clk 0:00:52]} 34. Kh2 {[%clk 0:01:33]}  Qc8 {[%clk 0:00:24]} 35. d7 {[%clk 0:01:21]}  Qd8 {[%clk 0:00:24]} 36. Qd5 {[%clk 0:00:49]}  b6 {[%clk 0:00:20]} 37. g3 {[%clk 0:00:49]}  Ne7 {[%clk 0:00:19]} 38. Qd6 {[%clk 0:00:44]}  Nf5 {[%clk 0:00:19]} 39. Qc6 {[%clk 0:00:41]}  Ne7 {[%clk 0:00:17]} 40. Qb7 {[%clk 0:00:37]}  Kg7 {[%clk 0:00:16]} 41. b4 {[%clk 0:00:28]}  Ng8 {[%clk 0:00:15]} 42. Qd5 {[%clk 0:00:24]}  f5 {[%clk 0:00:15]} 43. Qe5+ {[%clk 0:00:23]}  Kf7 {[%clk 0:00:14]} 44. Nd6+ {[%clk 0:00:19]}  Kf8 {[%clk 0:00:14]} 1-0

[Event "December 12 Early 2023"]
[Site "https://www.chess.com"]
[Date "2023.12.12"]
[Round "1"]
[White "Rodriguez Santiago, Jaime"]
[Black "Al-Tarboush, Ward"]
[Result "0-1"]
[Board "178"]
[TimeControl "180+1"]
[WhiteFideId "3100898"]
[BlackFideId "7601450"]
[WhiteElo "2280"]
[BlackElo "2596"]
[WhiteTeam "PUR"]
[BlackTeam "NOR"]
[WhiteClock "0:00:03"]
[BlackClock "0:01:05"]

1. d4 {[%clk 0:03:00]}  Nf6 {[%clk 0:02:59]} 2. c4 {[%clk 0:03:00]}  b6 {[%clk 0:02:58]} 3. Nc3 {[%clk 0:02:59]}  Bb7 {[%clk 0:02:58]} 4. d5 {[%clk 0:02:55]}  e6 {[%clk 0:02:56]} 5. e4 {[%clk 0:02:54]}  Bb4 {[%clk 0:02:52]} 6. Bd3 {[%clk 0:02:44]}  Na6 {[%clk 0:02:45]} 7. Be3 {[%clk 0:02:33]}  Nc5 {[%clk 0:02:42]} 8. Bxc5 {[%clk 0:02:27]}  Bxc3+ {[%clk 0:02:39]} 9. bxc3 {[%clk 0:02:17]}  bxc5 {[%clk 0:02:40]} 10. Nf3 {[%clk 0:02:12]}  d6 {[%clk 0:02:34]} 11. Rb1 {[%clk 0:01:59]}  Bc8 {[%clk 0:02:27]} 12. dxe6 {[%clk 0:01:44]}  Bxe6 {[%clk 0:02:25]} 13. O-O {[%clk 0:01:43]}  O-O {[%clk 0:02:23]} 14. e5 {[%clk 0:01:42]}  Ng4 {[%clk 0:02:22]} 15. Re1 {[%clk 0:01:29]}  Re8 {[%clk 0:02:09]} 16. h3 {[%clk 0:01:26]}  Nxe5 {[%clk 0:02:08]} 17. Nxe5 {[%clk 0:01:26]}  dxe5 {[%clk 0:02:08]} 18. Rxe5 {[%clk 0:01:25]}  Qd6 {[%clk 0:02:05]} 19. Qe2 {[%clk 0:01:21]}  Rad8 {[%clk 0:02:03]} 20. Rd1 {[%clk 0:01:21]}  g6 {[%clk 0:01:47]} 21. Bc2 {[%clk 0:01:07]}  Qe7 {[%clk 0:01:41]} 22. f4 {[%clk 0:01:01]}  Rxd1+ {[%clk 0:01:38]} 23. Qxd1 {[%clk 0:01:01]}  Qh4 {[%clk 0:01:38]} 24. Qf1 {[%clk 0:00:52]}  Qg3 {[%clk 0:01:21]} 25. Qf2 {[%clk 0:00:18]}  Qxc3 {[%clk 0:01:17]} 26. Rxc5 {[%clk 0:00:19]}  Qa1+ {[%clk 0:01:15]} 27. Kh2 {[%clk 0:00:18]}  Qf6 {[%clk 0:01:16]} 28. f5 {[%clk 0:00:17]}  Bxf5 {[%clk 0:01:13]} 29. Bxf5 {[%clk 0:00:16]}  Qd6+ {[%clk 0:01:13]} 30. Kg1 {[%clk 0:00:11]}  gxf5 {[%clk 0:01:09]} 31. Rxf5 {[%clk 0:00:10]}  Rb8 {[%clk 0:01:06]} 32. Rf3 {[%clk 0:00:09]}  Rb1+ {[%clk 0:01:06]} 33. Qf1 {[%clk 0:00:08]}  Rxf1+ {[%clk 0:01:06]} 34. Rxf1 {[%clk 0:00:08]}  Qd4+ {[%clk 0:01:06]} 35. Rf2 {[%clk 0:00:08]}  Qxc4 {[%clk 0:01:06]} 36. g3 {[%clk 0:00:07]}  Qe4 {[%clk 0:01:04]} 37. Kh2 {[%clk 0:00:07]}  c5 {[%clk 0:01:04]} 38. Rd2 {[%clk 0:00:06]}  c4 {[%clk 0:01:04]} 39. Rd8+ {[%clk 0:00:03]}  Kg7 {[%clk 0:01:05]} 0-1

[Event "December 12 Early 2023"]
[Site "https://www.chess.com"]
[Date "2023.12.12"]
[Round "1"]
[White "Tologon tegin, Semetei"]
[Black "Nasybullina, Alfia"]
[Result "1-0"]
[Board "179"]
[TimeControl "180+1"]
[WhiteFideId "13800574"]
[BlackFideId "4132416"]
[WhiteElo "2595"]
[BlackElo "2280"]
[WhiteTeam "KGZ"]
[BlackTeam "KAZ"]
[WhiteClock "0:00:59"]
[BlackClock "0:00:15"]

1. d4 {[%clk 0:03:00]}  Nf6 {[%clk 0:02:59]} 2. Nc3 {[%clk 0:03:01]}  d5 {[%clk 0:02:57]} 3. Bf4 {[%clk 0:03:01]}  e6 {[%clk 0:02:57]} 4. e3 {[%clk 0:03:01]}  c6 {[%clk 0:02:52]} 5. Nf3 {[%clk 0:02:55]}  b6 {[%clk 0:02:52]} 6. h3 {[%clk 0:02:53]}  Bb7 {[%clk 0:02:52]} 7. Bd3 {[%clk 0:02:53]}  Bd6 {[%clk 0:02:52]} 8. O-O {[%clk 0:02:53]}  Qc7 {[%clk 0:02:52]} 9. Ne5 {[%clk 0:02:52]}  Nbd7 {[%clk 0:02:51]} 10. Nxd7 {[%clk 0:02:48]}  Nxd7 {[%clk 0:02:50]} 11. Qg4 {[%clk 0:02:47]}  Bxf4 {[%clk 0:02:41]} 12. exf4 {[%clk 0:02:46]}  g6 {[%clk 0:02:40]} 13. Rfe1 {[%clk 0:02:44]}  O-O-O {[%clk 0:02:32]} 14. a4 {[%clk 0:02:41]}  Kb8 {[%clk 0:02:28]} 15. a5 {[%clk 0:02:40]}  b5 {[%clk 0:02:28]} 16. a6 {[%clk 0:02:36]}  Bc8 {[%clk 0:02:28]} 17. Qf3 {[%clk 0:02:12]}  Nb6 {[%clk 0:02:25]} 18. b3 {[%clk 0:02:11]}  Rhe8 {[%clk 0:02:14]} 19. Nb1 {[%clk 0:02:08]}  f6 {[%clk 0:02:12]} 20. Qg3 {[%clk 0:02:03]}  Bd7 {[%clk 0:01:43]} 21. Nd2 {[%clk 0:02:02]}  c5 {[%clk 0:01:40]} 22. dxc5 {[%clk 0:01:52]}  Qxc5 {[%clk 0:01:41]} 23. c4 {[%clk 0:01:53]}  b4 {[%clk 0:01:38]} 24. cxd5 {[%clk 0:01:49]}  exd5 {[%clk 0:01:38]} 25. f5+ {[%clk 0:01:45]}  Qc7 {[%clk 0:01:34]} 26. Qh4 {[%clk 0:01:41]}  Bxf5 {[%clk 0:01:23]} 27. Bxf5 {[%clk 0:01:40]}  gxf5 {[%clk 0:01:23]} 28. Qxb4 {[%clk 0:01:38]}  Re5 {[%clk 0:01:17]} 29. Nf3 {[%clk 0:01:38]}  Re4 {[%clk 0:01:17]} 30. Qb5 {[%clk 0:01:33]}  Qd7 {[%clk 0:01:14]} 31. Qd3 {[%clk 0:01:30]}  Rde8 {[%clk 0:01:10]} 32. Rec1 {[%clk 0:01:30]}  Qd6 {[%clk 0:01:07]} 33. Rc2 {[%clk 0:01:17]}  Qf4 {[%clk 0:00:58]} 34. Rac1 {[%clk 0:01:15]}  Rc8 {[%clk 0:00:54]} 35. Rxc8+ {[%clk 0:01:13]}  Nxc8 {[%clk 0:00:54]} 36. Rc6 {[%clk 0:01:09]}  Nb6 {[%clk 0:00:49]} 37. Qb5 {[%clk 0:01:06]}  Rb4 {[%clk 0:00:42]} 38. Qc5 {[%clk 0:01:06]}  Rxb3 {[%clk 0:00:15]} 39. Qf8+ {[%clk 0:00:59]} 1-0

[Event "December 12 Early 2023"]
[Site "https://www.chess.com"]
[Date "2023.12.12"]
[Round "1"]
[White "Mejia, Cherry Ann"]
[Black "Lund, Gunnar"]
[Result "0-1"]
[Board "180"]
[TimeControl "180+1"]
[WhiteFideId "5206880"]
[BlackFideId "1520814"]
[WhiteElo "2276"]
[BlackElo "2595"]
[WhiteTeam "PHI"]
[BlackTeam "NOR"]
[WhiteClock "0:00:00"]
[BlackClock "0:01:01"]

1. e4 {[%clk 0:02:56]}  e6 {[%clk 0:02:59]} 2. d4 {[%clk 0:02:55]}  d5 {[%clk 0:02:59]} 3. Bd3 {[%clk 0:02:55]}  Nf6 {[%clk 0:02:25]} 4. e5 {[%clk 0:02:43]}  Nfd7 {[%clk 0:02:04]} 5. Nf3 {[%clk 0:02:43]}  c5 {[%clk 0:02:03]} 6. c3 {[%clk 0:02:43]}  Nc6 {[%clk 0:02:04]} 7. O-O {[%clk 0:02:42]}  f6 {[%clk 0:02:03]} 8. exf6 {[%clk 0:02:34]}  Nxf6 {[%clk 0:02:01]} 9. Re1 {[%clk 0:02:28]}  Bd6 {[%clk 0:02:01]} 10. Ne5 {[%clk 0:02:24]}  O-O {[%clk 0:02:01]} 11. Bg5 {[%clk 0:02:22]}  Qc7 {[%clk 0:01:56]} 12. Bxf6 {[%clk 0:02:04]}  gxf6 {[%clk 0:01:56]} 13. Nf3 {[%clk 0:01:43]}  e5 {[%clk 0:01:56]} 14. dxe5 {[%clk 0:01:40]}  fxe5 {[%clk 0:01:57]} 15. Bc2 {[%clk 0:01:33]}  e4 {[%clk 0:01:56]} 16. Qxd5+ {[%clk 0:01:33]}  Kh8 {[%clk 0:01:38]} 17. Rxe4 {[%clk 0:01:31]}  Bf5 {[%clk 0:01:35]} 18. Re2 {[%clk 0:01:14]}  Rad8 {[%clk 0:01:35]} 19. Qc4 {[%clk 0:00:53]}  Bxc2 {[%clk 0:01:34]} 20. Rxc2 {[%clk 0:00:52]}  Rxf3 {[%clk 0:01:34]} 21. gxf3 {[%clk 0:00:52]}  Ne5 {[%clk 0:01:33]} 22. Qe4 {[%clk 0:00:48]}  Rf8 {[%clk 0:01:33]} 23. Nd2 {[%clk 0:00:47]}  Ng6 {[%clk 0:01:25]} 24. Nc4 {[%clk 0:00:26]}  Bxh2+ {[%clk 0:01:23]} 25. Kh1 {[%clk 0:00:26]}  Bf4 {[%clk 0:01:21]} 26. Ne3 {[%clk 0:00:23]}  Qd7 {[%clk 0:01:19]} 27. Ng4 {[%clk 0:00:16]}  Re8 {[%clk 0:01:11]} 28. Qc4 {[%clk 0:00:16]}  Ne5 {[%clk 0:01:08]} 29. Qxc5 {[%clk 0:00:11]}  Nxf3 {[%clk 0:01:08]} 30. Qh5 {[%clk 0:00:04]}  Qc6 {[%clk 0:01:02]} 31. Ne5 {[%clk 0:00:00]}  Nxe5+ {[%clk 0:01:01]} 0-1

[Event "December 12 Early 2023"]
[Site "https://www.chess.com"]
[Date "2023.12.12"]
[Round "1"]
[White "Khandelwal, Ankush"]
[Black "Ernst, Luca"]
[Result "0-1"]
[Board "181"]
[TimeControl "180+1"]
[WhiteFideId "413470"]
[BlackFideId "45117055"]
[WhiteElo "2592"]
[BlackElo "2275"]
[WhiteTeam "ENG"]
[BlackTeam "FRA"]
[WhiteClock "0:00:08"]
[BlackClock "0:01:14"]

1. e4 {[%clk 0:02:58]}  e5 {[%clk 0:02:57]} 2. Nf3 {[%clk 0:02:58]}  Nc6 {[%clk 0:02:57]} 3. Bc4 {[%clk 0:02:57]}  Bc5 {[%clk 0:02:57]} 4. c3 {[%clk 0:02:56]}  Nf6 {[%clk 0:02:57]} 5. d3 {[%clk 0:02:57]}  d6 {[%clk 0:02:56]} 6. O-O {[%clk 0:02:57]}  h6 {[%clk 0:02:56]} 7. h3 {[%clk 0:02:52]}  a6 {[%clk 0:02:56]} 8. Re1 {[%clk 0:02:52]}  Na5 {[%clk 0:02:55]} 9. Bxf7+ {[%clk 0:02:48]}  Kxf7 {[%clk 0:02:54]} 10. b4 {[%clk 0:02:49]}  Bb6 {[%clk 0:02:51]} 11. bxa5 {[%clk 0:02:48]}  Bxa5 {[%clk 0:02:52]} 12. Na3 {[%clk 0:02:44]}  Be6 {[%clk 0:02:51]} 13. Bd2 {[%clk 0:02:40]}  Rf8 {[%clk 0:02:46]} 14. d4 {[%clk 0:02:37]}  exd4 {[%clk 0:02:36]} 15. cxd4 {[%clk 0:02:37]}  Bxd2 {[%clk 0:02:37]} 16. Qxd2 {[%clk 0:02:37]}  Kg8 {[%clk 0:02:37]} 17. Nc2 {[%clk 0:02:30]}  d5 {[%clk 0:02:34]} 18. exd5 {[%clk 0:01:58]}  Bxd5 {[%clk 0:02:34]} 19. Ne5 {[%clk 0:01:58]}  Ne4 {[%clk 0:02:20]} 20. Qb4 {[%clk 0:01:26]}  Rxf2 {[%clk 0:02:01]} 21. Rxe4 {[%clk 0:01:22]}  Rxg2+ {[%clk 0:01:55]} 22. Kxg2 {[%clk 0:01:16]}  Bxe4+ {[%clk 0:01:55]} 23. Kh2 {[%clk 0:01:04]}  Qg5 {[%clk 0:01:35]} 24. Ng4 {[%clk 0:00:12]}  Qf4+ {[%clk 0:01:28]} 25. Kg1 {[%clk 0:00:09]}  Qg3+ {[%clk 0:01:15]} 26. Kf1 {[%clk 0:00:09]}  Rf8+ {[%clk 0:01:16]} 27. Ke2 {[%clk 0:00:09]}  Qd3+ {[%clk 0:01:14]} 28. Ke1 {[%clk 0:00:08]}  Rf1# {[%clk 0:01:14]} 0-1